fUSD/lending_fUSD_20240414
["ID","MTS","AMOUNT","RATE_DAILY","PERIOD"]
[322595059,1713098429887,323.54057448,0.00018808,2]
[322595060,1713098430896,550.37357145,0.00018808,2]
[322595061,1713098437758,150.0,0.00017868,2]
[322595062,1713098437779,150.0,0.00017868,2]
[322595063,1713098437799,150.0,0.00017868,2]
[322595064,1713098437819,150.0,0.00017868,2]
[322595065,1713098437838,150.0,0.00017868,2]
[322595066,1713098437858,150.0,0.00017868,2]
[322595067,1713098437878,52.68711223,0.00017868,2]
[322595068,1713098457740,150.0,0.00017868,2]
[322595069,1713098457760,227.66192232,0.00017868,2]
[322595070,1713098457782,150.0,0.00017868,2]
[322595071,1713098457806,443.0725772,0.00017868,2]
[322595072,1713098489387,150.0,0.00017868,2]
[322595073,1713098489408,150.0,0.00017868,2]
[322595074,1713098489435,150.0,0.00017868,2]
[322595075,1713098489458,415.36661426,0.00017868,2]
[322595076,1713098493630,150.0,0.00017868,2]
[322595077,1713098493649,150.0,0.00017868,2]
[322595078,1713098493670,150.0,0.00017868,2]
[322595079,1713098493690,150.0,0.00017868,2]
[322595080,1713098493710,150.0,0.00017868,2]
[322595081,1713098493729,150.0,0.00017868,2]
[322595082,1713098493749,139.44599198,0.00017868,2]
[322595083,1713098500399,150.0,0.00017868,2]
[322595084,1713098500427,150.0,0.00017868,2]
[322595085,1713098500448,23.54057448,0.00017868,2]
[322595086,1713098503377,150.0,0.00017868,2]
[322595087,1713098503399,150.0,0.00017868,2]
[322595088,1713098503424,150.0,0.00017868,2]
[322595089,1713098503446,150.0,0.00017868,2]
[322595090,1713098503469,150.0,0.00017868,2]
[322595091,1713098503490,115.36661426,0.00017868,2]
[322595092,1713098509636,1039.44599198,0.00017868,2]
[322595093,1713098519631,150.0,0.00017868,2]
[322595094,1713098519652,150.0,0.00017868,2]
[322595095,1713098519673,285.02708138,0.00017868,2]
[322595096,1713098519694,275.57864962,0.00017868,2]
[322595097,1713098519715,4.76088326,0.00017868,2]
[322595098,1713098520404,323.54057448,0.00017868,2]
[322595099,1713098527637,1039.44599198,0.00017868,2]
[322595100,1713098530782,392.51,0.00017868,2]
[322595101,1713098538414,249.65438527,0.00017868,2]
[322595102,1713098539678,170.57022715,0.00017868,2]
[322595103,1713098549716,1039.44599198,0.00017868,2]
[322595104,1713098567697,1039.44599198,0.00017868,2]
[322595105,1713098589698,1039.44599198,0.00017868,2]
[322595106,1713098609705,1039.44599198,0.00017868,2]
[322595107,1713098627705,1039.44599198,0.00017868,2]
[322595108,1713098635689,5004.33,0.0001801,2]
[322595109,1713098645703,1039.44599198,0.00017868,2]
[322595110,1713098665738,841.84857072,0.00017868,2]
[322595119,1713098959506,-2000.0,0.0001811,2]
[322595120,1713098961090,-290.22549807,0.0001811,2]
[322595121,1713098961110,-1709.77450193,0.00018111,2]
[322595122,1713098962492,-580.45099613,0.00018111,2]
[322595123,1713098962511,-1419.54900387,0.00018111,2]
[322595124,1713098964365,-870.67649419,0.00018111,2]
[322595125,1713098964385,-155.0,0.00018209,2]
[322595126,1713098964403,-780.34286168,0.0001821,2]
[322595127,1713098964425,-160.25879716,0.00018405,2]
[322595128,1713098964445,-33.72184697,0.00018505,2]
[322595129,1713098965196,-116.27815303,0.00018505,2]
[322595130,1713098965218,-150.0,0.00018505,2]
[322595131,1713098965238,-1733.72184697,0.00018506,2]
[322595132,1713098966436,-816.27815303,0.00018506,2]
[322595133,1713099004953,1183.72184697,0.00018109,2]
[322595134,1713099004972,2000.0,0.00018109,2]
[322595144,1713099032256,-8988.94977209,0.00018109,2]
[322595145,1713099032269,-361.38016514,0.00018808,2]
[322595146,1713099032282,-1312.21524699,0.00018808,2]
[322595147,1713099032295,-3905.994697,0.00020386,2]
[322595148,1713099032307,-1000.0,0.00020489,2]
[322595149,1713099032319,-150.0,0.00020877,2]
[322595150,1713099032333,-1000.0,0.00020896,2]
[322595151,1713099032346,-233.51339806,0.00020898,2]
[322595152,1713099032364,-455.99614662,0.00020898,2]
[322595153,1713099032377,-2569.85887509,0.00020898,2]
[322595154,1713099032392,-6320.89114185,0.00020898,2]
[322595155,1713099032405,-3077.0205572,0.00020899,2]
[322595156,1713099032417,-499.99,0.00020899,2]
[322595157,1713099032432,-47573.6523,0.000209,2]
[322595158,1713099032446,-238.561,0.00022198,2]
[322595159,1713099032458,-155.000001,0.00022298,2]
[322595160,1713099032471,-1045.58153777,0.00022298,2]
[322595161,1713099032484,-161.04047116,0.00022298,2]
[322595162,1713099032496,-208.07835669,0.00022298,2]
[322595163,1713099032510,-1066.89581527,0.00022298,2]
[322595164,1713099032525,-156.42364397,0.00022298,2]
[322595165,1713099032538,-155.57980552,0.00022298,2]
[322595166,1713099032550,-206.42056289,0.00022298,2]
[322595167,1713099032562,-355.23177665,0.00022298,2]
[322595168,1713099032576,-387.91645225,0.00022299,2]
[322595169,1713099032589,-10479.15840767,0.000223,2]
[322595171,1713099032622,-2426.15,0.000223,2]
[322595173,1713099032637,-616.98338432,0.000223,2]
[322595176,1713099032653,-408.75323981,0.000223,2]
[322595179,1713099032669,-450.0,0.000223,2]
[322595182,1713099032684,-957.33483973,0.000223,2]
[322595193,1713099032741,-455.94522447,0.000223,2]
[322595196,1713099032772,-2766.76139156,0.000223,2]
[322595198,1713099032784,-666.76660122,0.000223,2]
[322595200,1713099032811,-1205.23339878,0.000223,2]
[322595202,1713099032823,-1250.0,0.00023,3]
[322595203,1713099032837,-458.56,0.00023766,2]
[322595204,1713099032849,-1998.95566924,0.000248,2]
[322595205,1713099032867,-179.1555581,0.00025,2]
[322595206,1713099032879,-1300.0,0.00025,3]
[322595207,1713099032892,-250.0,0.00025328,2]
[322595208,1713099032904,-250.0,0.00025443,2]
[322595209,1713099032917,-250.0,0.00025688,2]
[322595210,1713099032929,-3219.66866809,0.00025882,28]
[322595211,1713099032941,-155.14,0.00025931,2]
[322595212,1713099032954,-458.56,0.0002603,2]
[322595213,1713099032966,-130.72670579,0.00026124,2]
[322595214,1713099032981,-24.41329421,0.00026124,2]
[322595215,1713099032994,-167.13,0.00026294,2]
[322595216,1713099033006,-155.14,0.00026317,2]
[322595217,1713099033018,-166.78,0.00026338,2]
[322595218,1713099033030,-155.14,0.0002651,2]
[322595219,1713099033043,-155.14,0.00026703,2]
[322595220,1713099033057,-155.14,0.00026896,2]
[322595221,1713099033070,-1350.0,0.00027,3]
[322595222,1713099033082,-155.14,0.00027089,2]
[322595223,1713099033095,-155.14,0.00027282,2]
[322595224,1713099033111,-184.77,0.00027397,2]
[322595225,1713099033123,-155.24,0.00027397,2]
[322595226,1713099033137,-2000.0,0.00027397,2]
[322595227,1713099033149,-4210.70603827,0.00028,2]
[322595228,1713099033165,-547.43728168,0.00028,2]
[322595229,1713099033192,-6186.89494395,0.00028,2]
[322595264,1713099038047,-9244.0510743,0.00028,2]
[322595265,1713099038057,-155.0,0.00028293,2]
[322595266,1713099038066,-458.56,0.00028294,2]
[322595267,1713099038076,-871.66625545,0.000289,2]
[322595268,1713099038086,-785.52907082,0.00028997,2]
[322595269,1713099038095,-1761.90527738,0.00028998,2]
[322595270,1713099038106,-294.92314501,0.00028998,2]
[322595271,1713099038115,-161.79781133,0.00028998,2]
[322595272,1713099038124,-213.25757319,0.00028998,2]
[322595273,1713099038134,-155.00001428,0.00028998,2]
[322595274,1713099038143,-5054.73385831,0.00028998,2]
[322595275,1713099038153,-6225.54627846,0.00028998,2]
[322595276,1713099038162,-196.85723822,0.00028998,2]
[322595277,1713099038171,-209.40128101,0.00028998,2]
[322595278,1713099038181,-190.2017221,0.00028999,2]
[322595279,1713099038191,-156.74099264,0.00028999,2]
[322595280,1713099038200,-157.15123997,0.00028999,2]
[322595281,1713099038209,-5114.71498827,0.00029,2]
[322595282,1713099038219,-1400.0,0.00029,3]
[322595283,1713099038229,-562.05444632,0.00029,2]
[322595284,1713099038238,-1000.0,0.00029,2]
[322595285,1713099038248,-871.66625536,0.000293,2]
[322595286,1713099038257,-442.25500705,0.000295,3]
[322595287,1713099038268,-871.66625536,0.000297,2]
[322595288,1713099038278,-1000.0,0.00029805,2]
[322595289,1713099038287,-160.25879715,0.000299,2]
[322595290,1713099038296,-1357.41300212,0.00029976,2]
[322595291,1713099038306,-151.81,0.0002999,2]
[322595292,1713099038315,-151.81,0.0002999,2]
[322595293,1713099038325,-151.81,0.0002999,2]
[322595294,1713099038334,-151.81,0.0002999,2]
[322595295,1713099038344,-163.39,0.0002999,2]
[322595296,1713099038353,-433.15240288,0.00029998,2]
[322595297,1713099038363,-209.99236181,0.00029998,2]
[322595298,1713099038373,-817.54419671,0.00029998,2]
[322595299,1713099038383,-458.85981713,0.00029998,2]
[322595300,1713099038392,-189.65213455,0.00029999,2]
[322595301,1713099038402,-500.0,0.00029999,2]
[322595302,1713099038411,-421.48770738,0.00029999,2]
[322595303,1713099038421,-200.79898502,0.00029999,2]
[322595304,1713099038430,-534.37806003,0.0003,2]
[322595305,1713099038440,-200.0,0.0003,7]
[322595306,1713099038450,-200.0,0.0003,7]
[322595307,1713099038459,-420.91017053,0.0003,2]
[322595308,1713099038469,-200.0,0.0003,7]
[322595309,1713099038479,-200.0,0.0003,7]
[322595310,1713099038488,-200.0,0.0003,7]
[322595311,1713099038498,-9689.99525446,0.0003,3]
[322595312,1713099038507,-2914918.86219344,0.0003,2]
[322595437,1713099040944,-269840.67253395,0.0003,2]
[322595443,1713099040989,-850.0,0.0003,2]
[322595445,1713099041001,-66081.11200643,0.0003,2]
[322595451,1713099041050,-7214.50036956,0.0003,2]
[322595454,1713099041062,-9500.929818,0.0003,2]
[322595462,1713099041141,-14070.88559999,0.0003,2]
[322595463,1713099041153,-1140.27040064,0.0003,2]
[322595464,1713099041460,-13827.42220461,0.0003,2]
[322595465,1713099041472,-19134.06248342,0.0003,2]
[322595466,1713099041699,-477.64222405,0.0003,2]
[322595467,1713099041858,-12847.45288632,0.0003,2]
[322595468,1713099041897,-1957.36666852,0.0003,2]
[322595469,1713099041909,-3884.681,0.0003,2]
[322595470,1713099041935,-1526.70748358,0.0003,2]
[322595471,1713099041955,-2503.73914955,0.0003,2]
[322595472,1713099041967,-476.2010242,0.0003,2]
[322595473,1713099041995,-6545.64529477,0.0003,2]
[322595474,1713099042019,-477.64518787,0.0003,2]
[322595475,1713099042032,-681.33262632,0.0003,2]
[322595483,1713099043526,-440.74430194,0.00029999,2]
[322595484,1713099043538,-793.62,0.00029999,2]
[322595485,1713099043550,-941.88896305,0.00029999,2]
[322595486,1713099043559,-2842.83705847,0.0003,2]
[322595487,1713099043569,-8483.04403908,0.0003,2]
[322595488,1713099043581,-4242.48591911,0.0003,2]
[322595489,1713099043593,-793.49263248,0.0003,2]
[322595516,1713099046164,-44538.57581219,0.0003,2]
[322595517,1713099046279,-3237.35,0.0003,2]
[322595521,1713099200305,-156.62444705,0.00018898,2]
[322595522,1713099200325,-260.38108017,0.00018898,2]
[322595523,1713099200345,-155.44351897,0.00018898,2]
[322595528,1713099259238,748.77932256,0.00018898,2]
[322595530,1713099273870,750.0,0.00015,2]
[322595531,1713099281169,748.77932256,0.00018898,2]
[322595532,1713099299157,513.60137391,0.00018898,2]
[322595534,1713099528834,599.27979208,0.00015749,2]
[322595536,1713099783631,67.1111427,0.00015749,2]
[322595537,1713099783652,874.88404024,0.00015749,2]
[322595538,1713099800086,941.99518294,0.00015749,2]
[322595539,1713099816561,941.99518294,0.00015749,2]
[322595540,1713099838218,941.99518294,0.00015749,2]
[322595541,1713099860087,299.13041094,0.00015749,2]
[322595542,1713099860109,642.864772,0.00015749,2]
[322595543,1713099876086,941.51948514,0.00015749,2]
[322595544,1713099901371,668.29,0.00017686,2]
[322595545,1713100216326,203.92900507,0.00018835,2]
[322595555,1713100232305,-330.79,0.00018933,2]
[322595558,1713100232368,-32.50786344,0.00018933,2]
[322595560,1713100232381,-282.49213656,0.00018933,2]
[322595562,1713100232397,-125.41482285,0.00018933,2]
[322595563,1713100232416,-363.29786344,0.00018933,2]
[322595564,1713100232429,-7.5840734,0.00018934,2]
[322595565,1713100232444,-228.84904366,0.00018934,2]
[322595566,1713100232456,-155.0,0.00018935,2]
[322595567,1713100232467,-363.29786344,0.00018935,2]
[322595568,1713100232477,-150.0,0.00018937,2]
[322595569,1713100232487,-837.3170929,0.00018938,2]
[322595570,1713100232504,-403.41332342,0.00018938,2]
[322595571,1713100232517,-324.10000261,0.00018938,2]
[322595572,1713100232528,-670.78694448,0.00018938,2]
[322595573,1713100232556,-5695.18119856,0.00018938,2]
[322595574,1713100232599,-1129.24535294,0.00018938,2]
[322595577,1713100233240,-407.66775212,0.00018938,2]
[322595578,1713100233694,-397.30731687,0.00018938,2]
[322595579,1713100233705,-418.38766089,0.0001916,2]
[322595580,1713100233717,-258.91338607,0.0001916,2]
[322595581,1713100233727,-1297.79891384,0.00019177,2]
[322595582,1713100233737,-320.19796154,0.00019178,2]
[322595583,1713100233747,-186.67,0.00019382,2]
[322595584,1713100233756,-4975.77,0.00019382,2]
[322595585,1713100233766,-2018.41,0.00019385,2]
[322595586,1713100233776,-16283.73,0.00019397,2]
[322595587,1713100233785,-707.02,0.00019458,2]
[322595588,1713100233795,-250.0,0.00019458,2]
[322595589,1713100233806,-493.77,0.00019458,2]
[322595590,1713100233815,-558.95,0.00019475,2]
[322595591,1713100233824,-177.3,0.00019475,2]
[322595592,1713100233833,-682.74,0.00019503,2]
[322595593,1713100233843,-1340.14,0.00019603,2]
[322595594,1713100233852,-150.44,0.00019732,2]
[322595595,1713100233861,-668.29,0.00019949,2]
[322595596,1713100233870,-178.06,0.00019977,2]
[322595597,1713100233880,-157.21493486,0.0002,2]
[322595598,1713100233889,-155.0,0.00020015,2]
[322595599,1713100233898,-1764.61264408,0.00020016,2]
[322595600,1713100233907,-441.68561232,0.00020017,2]
[322595601,1713100233917,-2808.74,0.00020018,2]
[322595602,1713100233926,-499.99,0.00020046,2]
[322595603,1713100233937,-500.0,0.00020046,2]
[322595604,1713100233948,-1702.07,0.00020046,2]
[322595605,1713100233960,-4330.96208946,0.00020046,2]
[322595654,1713100238446,-5539.30222896,0.00018932,2]
[322595658,1713100238483,-19569.03791054,0.00020046,2]
[322595659,1713100238493,-3098.45,0.00020046,2]
[322595660,1713100238503,-157.1,0.00020167,2]
[322595661,1713100238512,-157.1,0.00020242,2]
[322595662,1713100238522,-157.1,0.00020317,2]
[322595663,1713100238531,-157.1,0.00020392,2]
[322595664,1713100238541,-157.1,0.00020467,2]
[322595665,1713100238550,-166.07,0.00020538,2]
[322595666,1713100238563,-157.1,0.00020542,2]
[322595667,1713100238572,-157.1,0.00020617,2]
[322595668,1713100238582,-150.99,0.0002069,2]
[322595669,1713100238591,-157.1,0.00020692,2]
[322595670,1713100238602,-157.1,0.00020768,2]
[322595672,1713100238612,-210.0,0.00020831,2]
[322595673,1713100238622,-157.1,0.00020843,2]
[322595674,1713100238632,-2117.4382,0.000209,2]
[322595675,1713100238642,-17061.35759208,0.000209,2]
[322595676,1713100238653,-306.88121887,0.000209,2]
[322595677,1713100238663,-2500.0,0.000209,2]
[322595678,1713100238673,-157.1,0.00020918,2]
[322595679,1713100238684,-4575.65491624,0.00020979,2]
[322595680,1713100238693,-157.1,0.00020993,2]
[322595681,1713100238703,-6225.54627846,0.00020998,2]
[322595682,1713100238712,-785.52907082,0.00020998,2]
[322595683,1713100238721,-190.2017221,0.00020998,2]
[322595684,1713100238730,-155.00001428,0.00020998,2]
[322595686,1713100238740,-206.42056289,0.00020998,2]
[322595688,1713100238749,-157.15123997,0.00020998,2]
[322595690,1713100238759,-161.79781133,0.00020998,2]
[322595692,1713100238769,-213.25757319,0.00020998,2]
[322595694,1713100238778,-294.92314501,0.00020998,2]
[322595695,1713100238788,-600.80112678,0.00020998,2]
[322595696,1713100238797,-155.0,0.00020998,2]
[322595697,1713100238810,-3377.19112884,0.00020998,2]
[322595698,1713100238819,-155.0,0.00020998,2]
[322595699,1713100238829,-362.61358032,0.00020998,2]
[322595700,1713100238838,-263.32392544,0.00020998,2]
[322595701,1713100238848,-433.15240288,0.00020998,2]
[322595702,1713100238857,-817.54419671,0.00020998,2]
[322595703,1713100238867,-209.99236181,0.00020998,2]
[322595704,1713100238877,-2799.40270912,0.00020999,2]
[322595705,1713100238886,-458.85981713,0.00020999,2]
[322595706,1713100238895,-196.85723822,0.00020999,2]
[322595707,1713100238905,-156.74099264,0.00020999,2]
[322595708,1713100238915,-1082.53769837,0.00020999,5]
[322595709,1713100238924,-1082.53769837,0.00020999,5]
[322595710,1713100238933,-1082.53769837,0.00020999,5]
[322595711,1713100238949,-1082.53769837,0.00020999,5]
[322595712,1713100238958,-1082.53769837,0.00020999,5]
[322595713,1713100238967,-1082.5376984,0.00020999,5]
[322595714,1713100238977,-500.0,0.00020999,2]
[322595715,1713100238988,-442.52164728,0.00020999,2]
[322595716,1713100238997,-500.0,0.00020999,2]
[322595717,1713100239007,-500.0,0.00020999,2]
[322595718,1713100239016,-500.0,0.00020999,2]
[322595719,1713100239026,-571.62569125,0.00020999,2]
[322595720,1713100239037,-500.0,0.00020999,2]
[322595721,1713100239046,-7432127.67849664,0.00021,2]
[322595722,1713100239986,-14438022.6587518,0.00021,2]
[322595724,1713100240000,-269840.67253395,0.00021,2]
[322595729,1713100240032,-88623.00084464,0.00021,2]
[322595735,1713100240074,-9666.67405326,0.00021,2]
[322595770,1713100240554,-404.59529847,0.00021,2]
[322595845,1713100243357,-706.32204933,0.00021,2]
[322595871,1713100243523,-19487.17436537,0.00021,2]
[322595879,1713100243588,-453.0,0.00021,2]
[322595881,1713100243599,-335.88180539,0.00021,2]
[322595905,1713100246386,-200.0,0.00020999,2]
[322595906,1713100246396,-495.87483595,0.00020999,2]
[322595907,1713100246406,-236.43311706,0.00020999,2]
[322595908,1713100246416,-31317.69204699,0.00021,2]
[322595909,1713100435748,720.21,0.00017843,2]
[322595910,1713100983374,684.19,0.00017511,2]
[322595911,1713101201514,138.99673779,0.00015,2]
[322595912,1713101201535,729.00326221,0.00015,2]
[322595916,1713101375704,200.0,0.00014925,2]
[322595917,1713101380283,157.48198917,0.000154,2]
[322595918,1713101381281,157.48198917,0.000154,2]
[322595919,1713101381753,157.48198917,0.000154,2]
[322595920,1713101382196,157.48198917,0.000154,2]
[322595921,1713101382807,157.48198917,0.000154,2]
[322595922,1713101383241,157.48198917,0.000154,2]
[322595923,1713101383583,157.48198917,0.000154,2]
[322595924,1713101384065,157.48198917,0.000154,2]
[322595925,1713101384426,157.48198917,0.000154,2]
[322595926,1713101384857,157.48198917,0.000154,2]
[322595927,1713101385272,157.48198917,0.000154,2]
[322595928,1713101386394,157.48198917,0.000154,2]
[322595929,1713101386566,157.48198917,0.000154,2]
[322595930,1713101386718,157.48198917,0.000154,2]
[322595931,1713101386996,157.48198,0.000154,2]
[322595953,1713101431443,-363.29786344,0.0001927,2]
[322595954,1713101431453,-155.0,0.00019271,2]
[322595956,1713101431462,-2212.48519324,0.00019272,2]
[322595958,1713101431472,-408.53072925,0.00019272,2]
[322595959,1713101431481,-169.92,0.0001928,2]
[322595961,1713101431490,-150.0,0.00019378,2]
[322595963,1713101431500,-150.0,0.00019378,2]
[322595964,1713101431509,-11137.90498292,0.00019379,2]
[322595965,1713101431521,-297.182565,0.00019379,2]
[322595966,1713101431540,-1738.0,0.00019379,2]
[322595967,1713101431552,-13308.087,0.00019379,2]
[322595968,1713101431618,-436.75699053,0.00019379,2]
[322595969,1713101431674,-8292.99885053,0.00019379,2]
[322595970,1713101431683,-2681.90114947,0.0001938,2]
[322595971,1713101431713,-569.99999994,0.0001938,2]
[322595972,1713101431726,-16163.167331,0.0001938,2]
[322595973,1713101431736,-606.5,0.00019389,2]
[322595974,1713101431745,-2656.92,0.00019394,2]
[322595975,1713101431754,-2159.53,0.00019394,2]
[322595976,1713101431763,-1000.0,0.00019398,2]
[322595977,1713101431773,-500.0,0.00019409,2]
[322595978,1713101431781,-480.39,0.00019409,2]
[322595979,1713101431790,-250.0,0.0001943,2]
[322595980,1713101431799,-150.0,0.00019445,2]
[322595981,1713101431808,-162.03551152,0.00019569,2]
[322595982,1713101431817,-4678.84,0.00019578,2]
[322595983,1713101431826,-159.42,0.00019607,2]
[322595984,1713101431835,-159.42,0.0001968,2]
[322595985,1713101431844,-538.48574102,0.00019738,2]
[322595986,1713101431853,-159.42,0.00019753,2]
[322595987,1713101431862,-684.19,0.00019775,2]
[322595989,1713101431871,-159.42,0.00019826,2]
[322595990,1713101431880,-159.42,0.00019899,2]
[322595991,1713101431889,-159.42,0.00019972,2]
[322595992,1713101431898,-441.68561232,0.0002,2]
[322595993,1713101431908,-159.42,0.00020045,2]
[322595994,1713101431917,-300.0,0.000201,7]
[322595995,1713101431927,-159.42,0.00020118,2]
[322595996,1713101431936,-159.42,0.00020191,2]
[322595998,1713101431945,-600.0,0.000202,7]
[322596000,1713101431955,-162.0355115,0.00020235,2]
[322596002,1713101431964,-159.42,0.00020264,2]
[322596004,1713101431978,-900.0,0.000203,7]
[322596006,1713101431988,-159.42,0.00020337,2]
[322596008,1713101431997,-1300.0,0.000204,7]
[322596010,1713101432007,-159.42,0.0002041,2]
[322596012,1713101432016,-159.42,0.00020483,2]
[322596014,1713101432026,-1600.0,0.000205,7]
[322596016,1713101432036,-6219.81,0.00020548,2]
[322596018,1713101432046,-159.42,0.00020556,2]
[322596020,1713101432055,-300.0,0.000206,7]
[322596022,1713101432064,-159.42,0.00020629,2]
[322596024,1713101432075,-300.0,0.000207,7]
[322596026,1713101432085,-255.7749,0.00020798,2]
[322596028,1713101432094,-300.0,0.000208,7]
[322596030,1713101432105,-375.78589061,0.00020898,2]
[322596032,1713101432114,-5967.0871,0.00020898,2]
[322596034,1713101432123,-1631.19158576,0.00020898,2]
[322596037,1713101432136,-2365.95611424,0.00020898,2]
[322596039,1713101432145,-765.4445,0.00020898,2]
[322596040,1713101432155,-5777.7994,0.00020898,2]
[322596042,1713101432165,-375.78589056,0.00020898,2]
[322596044,1713101432175,-375.78589056,0.00020898,2]
[322596046,1713101432187,-375.78589056,0.00020899,2]
[322596049,1713101432197,-375.78589056,0.00020899,2]
[322596050,1713101432207,-375.78589056,0.00020899,2]
[322596052,1713101432216,-375.78589056,0.00020899,2]
[322596053,1713101432230,-375.78589056,0.000209,2]
[322596054,1713101432240,-375.78589056,0.000209,2]
[322596055,1713101432250,-1325.3827,0.000209,2]
[322596056,1713101432260,-162.0355115,0.000209,2]
[322596057,1713101432271,-300.0,0.000209,7]
[322596058,1713101432281,-375.78589056,0.000209,2]
[322596059,1713101432291,-503.09514926,0.0002099,2]
[322596060,1713101432301,-362.61358032,0.00020998,2]
[322596061,1713101432311,-235.88214344,0.00020998,2]
[322596062,1713101432321,-41373.1482862,0.00020998,2]
[322596063,1713101432349,-4878.81624473,0.00020998,2]
[322596066,1713101437382,-358.18759866,0.00020998,2]
[322596067,1713101437398,-13603.4,0.00020998,2]
[322596068,1713101437432,-5863.73370177,0.00020998,2]
[322596069,1713101437448,-13800.0,0.00020998,2]
[322596070,1713101437463,-3337.5717888,0.00020998,2]
[322596071,1713101437481,-4422.33067648,0.00020998,2]
[322596072,1713101437542,-7039.4,0.00020998,2]
[322596073,1713101437599,-3463.56203204,0.00020998,2]
[322596074,1713101437656,-10795.23266166,0.00020998,2]
[322596075,1713101437718,-2671.54948444,0.00020998,2]
[322596076,1713101437734,-523.10403564,0.00020998,2]
[322596077,1713101437747,-155.25702583,0.00020998,2]
[322596078,1713101437759,-21751.42957017,0.00020998,2]
[322596079,1713101437772,-385.62172509,0.00020999,2]
[322596080,1713101437784,-1761.20421177,0.00020999,2]
[322596081,1713101437797,-263.37380083,0.00020999,2]
[322596082,1713101437810,-155.61894503,0.00020999,2]
[322596083,1713101437823,-4583.3488048,0.00020999,2]
[322596084,1713101437836,-1080.33124838,0.00020999,5]
[322596085,1713101437848,-1080.33124838,0.00020999,5]
[322596086,1713101437860,-350.0,0.00020999,2]
[322596087,1713101437873,-500.0,0.00020999,2]
[322596090,1713101437885,-200.0,0.00020999,2]
[322596092,1713101437897,-442.52164728,0.00020999,2]
[322596094,1713101437909,-500.0,0.00020999,2]
[322596096,1713101437921,-600.13798387,0.00020999,2]
[322596099,1713101437933,-7400798.65860042,0.00021,2]
[322596101,1713101437949,-12445186.24544665,0.00021,2]
[322596104,1713101437961,-1430.30975011,0.00021,2]
[322596106,1713101437976,-715.17033749,0.00021,2]
[322596108,1713101437989,-348.22,0.00021,2]
[322596111,1713101438002,-434.46,0.00021,2]
[322596113,1713101438015,-1989908.25321755,0.00021,2]
[322596116,1713101438030,-269840.67253395,0.00021,2]
[322596150,1713101441399,-1073.81136641,0.00021,2]
[322596151,1713101441410,-320.78622423,0.00021,2]
[322596152,1713101441421,-3878.22770887,0.00021,2]
[322596153,1713101441435,-384.83468693,0.00021,2]
[322596154,1713101441447,-3175.82164568,0.00021,2]
[322596155,1713101441459,-1513.47448272,0.00021,2]
[322596156,1713101441470,-607.63730262,0.00021,2]
[322596157,1713101441483,-1735.84402956,0.00021,2]
[322596178,1713101442691,-0.61970465,0.00021,2]
[322596179,1713101442715,-296.42479997,0.00021,2]
[322596180,1713101442726,-9655.1971048,0.00021,2]
[322596181,1713101442783,-8415.03627365,0.00021,2]
[322596182,1713101442795,-6344.0142818,0.00021,2]
[322596183,1713101442806,-3597.26621264,0.00021,2]
[322596184,1713101442817,-2882.9630604,0.00021,2]
[322596185,1713101442858,-976.962,0.00021,2]
[322596186,1713101442878,-290.44250001,0.00021,2]
[322596202,1713101445542,-328.0,0.00020997,2]
[322596203,1713101445552,-155.0,0.00020999,2]
[322596204,1713101445562,-441.68561232,0.00020999,2]
[322596205,1713101445571,-640.69289231,0.00020999,2]
[322596206,1713101445581,-2212.48519324,0.00020999,2]
[322596207,1713101445590,-1316.18288841,0.00020999,2]
[322596208,1713101445599,-6605.68103553,0.00021,2]
[322596209,1713101445650,-8026.57201872,0.00021,2]